[Event "Reykjavik Open 2024"]
[Site "Reykjavik"]
[Date "2024.03.18"]
[Round "5.6"]
[White "Wong-Godfrey, Emerson P"]
[Black "Belenkaya, Dina"]
[Result "1/2-1/2"]
[ECO "B19"]
[WhiteElo "1799"]
[BlackElo "2164"]
[Annotator "RC"]
[PlyCount "111"]
[EventDate "2024.03.12"]
[EventCountry "ISL"]
[SourceTitle "playchess.com"]
[Source "ChessBase"]
[SourceQuality "1"]
[TimeControl "40/5400+30:1800+30"]

1. e4 {[%emt 0:00:54]} c6 {[%emt 0:12:24]} 2. d4 {[%emt 0:00:22]} d5 {[%emt 0:00:04]} 3. Nc3 {[%emt 0:00:20]} dxe4 {[%emt 0:00:35]} 4. Nxe4 {[%emt 0:00:16]} Bf5 {[%emt 0:00:03]} 5. Ng3 {[%emt 0:00:08]} Bg6 {[%emt 0:00:06]} 6. h4 {[%emt 0:00:05]} h6 {[%emt 0:00:03]} 7. Nf3 {[%emt 0:01:05]} e6 {[%emt 0:00:32]} 8. Bd3 {[%emt 0:01:58]} Bxd3 {[%emt 0:00:09]} 9. Qxd3 {[%emt 0:00:02]} Nf6 {[%emt 0:00:19]} 10. O-O {[%emt 0:05:49]} Bd6 {[%emt 0:13:43]} 11. Ne4 {[%emt 0:02:08]} Nxe4 12. Qxe4 {[%emt 0:00:02]} Nd7 {[%emt 0:00:51]} 13. c4 {[%emt 0:09:53]} Nf6 {[%emt 0:06:16]} 14. Qe2 {[%emt 0:02:16]} Ng4 {[%emt 0:02:48]} 15. g3 {[%emt 0:07:29]} Qa5 {[%emt 0:03:26]} 16. Nd2 {[%emt 0:11:27]} Qh5 {[%emt 0:02:23]} 17. Ne4 {[%emt 0:09:46]} O-O-O {[%emt 0:03:07]} 18. f3 {[%emt 0:06:17]} Nf6 {[%emt 0:01:28]} 19. Nxd6+ {[%emt 0:00:30]} Rxd6 {[%emt 0:00:05]} 20. Qe5 {[%emt 0:00:18]} Rdd8 {[%emt 0:06:16]} 21. Bf4 {[%emt 0:04:39]} Qxe5 {[%emt 0:00:44]} 22. Bxe5 {[%emt 0:00:54]} Rhg8 {[%emt 0:02:14]} 23. Rad1 {[%emt 0:05:14]} h5 {[%emt 0:05:02]} 24. Kf2 {[%emt 0:04:11]} Rd7 {[%emt 0:00:09]} 25. Rd2 {[%emt 0:04:16]} Rgd8 {[%emt 0:01:19]} 26. Rfd1 {[%emt 0:00:28]} Ne8 {[%emt 0:00:21]} 27. g4 {[%emt 0:02:15]} c5 {[%emt 0:07:29]} 28. Ke3 {[%emt 0:08:20]} f6 {[%emt 0:03:03]} 29. Bg3 {[%emt 0:00:35]} hxg4 {[%emt 0:00:35]} 30. fxg4 {[%emt 0:00:02]} cxd4+ {[%emt 0:00:37]} 31. Rxd4 {[%emt 0:00:43]} e5 {[%emt 0:00:19]} 32. Rxd7 {[%emt 0:08:13]} Rxd7 {[%emt 0:00:01]} 33. Rxd7 {[%emt 0:00:02]} Kxd7 {[%emt 0:00:09]} 34. Ke4 {[%emt 0:00:22]} Ke6 {[%emt 0:00:06]} 35. c5 {[%emt 0:00:43]} Nc7 {[%emt 0:10:47]} 36. h5 {[%emt 0:01:35]} Nd5 {[%emt 0:02:08]} 37. a3 {[%emt 0:01:21]} a6 {[%emt 0:07:30]} 38. Be1 {[%emt 0:01:13]} Ne7 {[%emt 0:05:25]} 39. Bd2 {[%emt 0:01:03]} Nc6 {[%emt 0:01:28]} 40. b4 {[%emt 0:01:03]} Nd4 {[%emt 0:00:42]} 41. a4 {[%emt 0:31:10]} f5+ {[%emt 0:10:41]} 42. gxf5+ {[%emt 0:00:00]} Nxf5 {[%emt 0:00:01]} 43. Be1 {[%emt 0:00:00]} Nh6 {[%emt 0:03:08]} 44. b5 {[%emt 0:00:00]} axb5 {[%emt 0:00:33]} 45. axb5 {[%emt 0:00:00]} Nf7 {[%emt 0:04:55]} 46. Bh4 {[%emt 0:00:00]} b6 {[%emt 0:01:40]} 47. cxb6 {[%emt 0:00:00]} Nd6+ {[%emt 0:00:02]} 48. Kd3 {[%emt 0:00:00]} Kd7 {[%emt 0:05:37]} 49. Bf2 {[%emt 0:00:00]} Ne8 {[%emt 0:03:35]} 50. Bg3 {[%emt 0:00:00]} e4+ {[%emt 0:02:49]} 51. Kd4 {[%emt 0:00:00]} Kc8 {[%emt 0:01:07]} 52. Kc5 {[%emt 0:00:00]} Kb7 {[%emt 0:00:48]} 53. Kd4 {[%emt 0:06:57]} Nf6 {[%emt 0:00:22]} 54. Be5 {[%emt 0:00:23]} Nxh5 {[%emt 0:00:30]} 55. Kxe4 {[%emt 0:00:25]} Kxb6 {[%emt 0:00:35]} 56. Bxg7 {[%emt 0:00:25]} 1/2-1/2

[Event "Reykjavik Open 2024"]
[Site "Reykjavik"]
[Date "2024.03.18"]
[Round "5.7"]
[White "Kjartansson, Gudmundur"]
[Black "Can, Emre"]
[Result "1/2-1/2"]
[ECO "B51"]
[WhiteElo "2465"]
[BlackElo "2551"]
[Annotator "TA"]
[PlyCount "44"]
[EventDate "2024.03.12"]
[EventCountry "ISL"]
[SourceTitle "playchess.com"]
[Source "ChessBase"]
[SourceQuality "1"]
[TimeControl "40/5400+30:1800+30"]

{[%evp 9,44,7,4,0,0,0,0,0,2,5,14,-7,0,0,0,6,0,0,16,19,0,0,31,-29,0,0,0,-16,0,0,0,0,0,0,0,0,0]} 1. e4 {[%emt 0:00:03]} c5 {[%emt 0:12:11]} 2. Nf3 {[%emt 0:00:04]} d6 {[%emt 0:00:14]} 3. Bb5+ {[%emt 0:00:12]} Nd7 {[%emt 0:00:14][%cal Bb8d7,Bd7c5,Bc5e6][%mdl 32]} 4. d4 {[%emt 0:01:27]} cxd4 {[%emt 0:02:26]} 5. Qxd4 {[%emt 0:00:05]} a6 {[%emt 0:00:31]} 6. Be2 {[%emt 0:00:05]} Ngf6 {[%emt 0:00:59]} 7. O-O {[%emt 0:01:03]} e5 {[%emt 0:02:34]} 8. Qe3 {[%emt 0:00:06]} Nc5 {[%emt 0:00:28]} 9. Nc3 {[%emt 0:00:16]} Be7 {[%emt 0:01:53]} 10. Nd2 {[%emt 0:06:43]} b5 {[%emt 0:05:55]} 11. b4 {[%emt 0:19:32]} Ne6 {[%emt 0:00:08]} 12. a4 {[%emt 0:01:50]} bxa4 {[%emt 0:19:35]} 13. Nxa4 {[%emt 0:04:18]} d5 {[%emt 0:10:17]} 14. exd5 {[%emt 0:16:32]} Nxd5 {[%emt 0:00:11]} 15. Qe4 {[%emt 0:01:12] Black must now prevent Bc4.} (15. Qxe5 $2 {loses.} Bf6 (15... Bxb4 $2 16. Bf3 $18) 16. Qe4 Bxa1 $19) 15... Rb8 {[%emt 0:07:30]} 16. c3 {[%emt 0:15:45]} (16. Nc4 $14 O-O 17. c3 (17. Qxe5 Rxb4 18. Bd3 Bf6 $17)) 16... O-O {[%emt 0:14:27]} 17. Nc4 {[%emt 0:02:36] The position is equal.} (17. Qxe5 $2 {is the wrong capture.} Bd6 18. Qe4 Ndf4 $19) 17... Bb7 {[%emt 0:02:49] [#] Threatens to win with ...Ndf4.} 18. Qxe5 {[%emt 0:00:49]} Bf6 {[%emt 0:01:30]} 19. Qg3 {[%emt 0:00:26]} Bh4 {[%emt 0:02:42]} 20. Qe5 {[%emt 0:03:01]} Bf6 {[%emt 0:00:42]} 21. Qg3 {[%emt 0:00:04]} Bh4 {[%emt 0:00:05]} 22. Qe5 {[%emt 0:00:02]} Bf6 {[%emt 0:01:35] A rather calm draw.   Weighted Error Value: White=0.07 (flawless) /Black=0.07 (flawless) .  Mistake:       	White=1     	---        Inaccurate:     	---       	Black=1      OK:         	White=11    	Black=8} 1/2-1/2

[Event "Reykjavik Open 2024"]
[Site "Reykjavik"]
[Date "2024.03.18"]
[Round "5.8"]
[White "Nevednichy, Vladislav"]
[Black "Adhiban, B.."]
[Result "1/2-1/2"]
[ECO "B51"]
[WhiteElo "2445"]
[BlackElo "2541"]
[Annotator "TA"]
[PlyCount "90"]
[EventDate "2024.03.12"]
[EventCountry "ISL"]
[SourceTitle "playchess.com"]
[Source "ChessBase"]
[SourceQuality "1"]
[TimeControl "40/5400+30:1800+30"]

{[%evp 18,90,34,35,47,33,54,42,43,43,37,43,42,42,41,32,51,40,45,28,29,2,-7,-20,0,0,0,-2,-13,-68,-45,-53,0,0,0,0,0,0,0,0,59,49,114,79,47,0,0,-26,-26,-112,-61,-49,-49,-128,-45,-142,-101,-97,-64,-61,-75,-73,-52,-61,0,0,0,0,0,0,0,0,0,0,0]} 1. e4 {[%emt 0:00:03]} c5 {[%emt 0:01:37]} 2. Nf3 {[%emt 0:00:07]} d6 {[%emt 0:00:18]} 3. Bb5+ {[%emt 0:01:47]} Nd7 {[%emt 0:00:06]} 4. O-O {[%emt 0:00:10]} Ngf6 {[%emt 0:00:18]} 5. Re1 {[%emt 0:01:14]} a6 {[%emt 0:00:05]} 6. Bf1 {[%emt 0:00:04]} b6 {[%emt 0:00:12]} 7. d4 {[%emt 0:01:09]} cxd4 {[%emt 0:00:05]} 8. Nxd4 {[%emt 0:00:03]} Bb7 {[%emt 0:00:05]} 9. c4 {[%emt 0:00:43]} e6 {[%emt 0:03:04]} 10. Nc3 {[%emt 0:00:23]} Be7 {[%emt 0:00:04]} 11. f3 {[%emt 0:01:40]} O-O {[%emt 0:00:10]} 12. Be3 {[%emt 0:00:05]} Rc8 {[%emt 0:03:52] White is slightly better.} 13. Qd2 {[%emt 0:01:01]} Qc7 {[%emt 0:01:07]} 14. Rac1 {[%emt 0:06:38]} Qb8 {[%emt 0:00:08]} 15. Kh1 {[%emt 0:02:07]} Rfe8 {[%emt 0:00:13]} 16. Bg1 {[%emt 0:04:04]} Bd8 {[%emt 0:03:25]} 17. b4 {[%emt 0:03:01]} h5 {[%emt 0:09:43]} 18. Nb3 {[%emt 0:06:35][%cal Oc4c5]} h4 {[%emt 0:01:29][%cal Oh4h3]} 19. Red1 {[%emt 0:04:17]} h3 {[%emt 0:03:08]} 20. Qxd6 {[%emt 0:08:07]} ({Of course not} 20. gxh3 Ne5 21. Qg2 Nxc4 $17) 20... hxg2+ {[%emt 0:01:00]} (20... Bc7 $5 21. Qd4 Bf4 $11) 21. Kxg2 {[%emt 0:03:01] Qxb8 would now be deadly.} Bc7 {[%emt 0:01:53]} 22. Qd2 {[%emt 0:00:10]} Bf4 {[%emt 0:02:14]} 23. Qf2 {[%emt 0:18:31]} Bxc1 {[%emt 0:03:40]} (23... g5 {feels hotter.} 24. c5 g4 25. Be2 a5) 24. Rxc1 {[%emt 0:00:03]} Red8 {[%emt 0:01:14]} (24... Nh5 $15 25. Qh4 Nf4+ 26. Kh1 Rf8) 25. Qg3 $11 {[%emt 0:05:27]} e5 {[%emt 0:15:12]} 26. Be3 {[%emt 0:02:38]} Qd6 {[%emt 0:02:47]} 27. c5 {[%emt 0:05:18]} bxc5 {[%emt 0:01:03]} 28. bxc5 {[%emt 0:00:20]} Qe6 {[%emt 0:34:22]} (28... Nxc5 $11 29. Nxc5 (29. Rd1 Nxb3 30. Rxd6 Rxd6 $11) 29... Rxc5) 29. Kh1 {[%emt 0:02:34]} Nh5 {[%emt 0:02:07]} ({Black should play} 29... Qe7 $14) 30. Qh4 {[%emt 0:02:09]} Nf4 {[%emt 0:00:04]} 31. Bxf4 {[%emt 0:00:42]} (31. Na5 $1 $14 Ba8 (31... Nxc5 32. Bxc5 Rd7 33. Bc4 $16) 32. Bc4) 31... exf4 {[%emt 0:00:05]} 32. Bh3 {[%emt 0:01:19]} Qe5 {[%emt 0:00:05]} 33. Qf2 {[%emt 0:14:53]} (33. Nb1 $11) 33... Rxc5 {[%emt 0:04:40]} (33... Nxc5 $17 34. Bxc8 Nxb3 (34... Rxc8 35. Ne2 $15) 35. axb3 Rxc8) 34. Nxc5 $15 {[%emt 0:00:54]} Nxc5 {[%emt 0:00:05]} 35. Bf1 {[%emt 0:04:34] Against Rd3} (35. Qc2 $1 $15) 35... Ne6 {[%emt 0:06:24]} (35... Nd3 $17 36. Qb6 Rd6 37. Qxb7 Nxc1) 36. Bc4 {[%emt 0:01:31]} ({White should try} 36. Qa7 $15 Qc7 37. Ne2) 36... Rc8 {[%emt 0:00:19]} 37. Bxe6 {[%emt 0:00:22]} Rxc3 {[%emt 0:00:33]} 38. Rxc3 {[%emt 0:00:23]} Qxc3 $17 {[%emt 0:00:02][%mdl 4096] Endgame. KQB-KQB} 39. Bb3 {[%emt 0:00:28]} Bc8 {[%emt 0:01:39]} 40. Kg2 {[%emt 0:00:19] Inhibits Bh3+.} g5 {[%emt 0:00:38]} ({Better is} 40... a5 $15) 41. h4 $11 {[%emt 0:31:12] The position is equal.} gxh4 {[%emt 0:31:03]} 42. Qxh4 {[%emt 0:00:05]} Qd2+ {[%emt 0:00:26]} 43. Kg1 {[%emt 0:00:00]} Qc1+ {[%emt 0:00:00]} 44. Kg2 {[%emt 0:00:00]} Qd2+ {[%emt 0:00:00]} 45. Kg1 {[%emt 0:00:00]} Qc1+ {[%emt 0:00:00] Weighted Error Value: White=0.18 (very precise) /Black=0.18 (very precise) .  Mistake:       	White=5     	Black=6      Inaccurate:     	White=3     	Black=1      OK:         	White=7     	Black=8      Best:        	White=2     	---} 1/2-1/2

[Event "Reykjavik Open 2024"]
[Site "Reykjavik"]
[Date "2024.03.18"]
[Round "5.9"]
[White "Thorfinnsson, Bjorn"]
[Black "Xu, Xiangyu"]
[Result "0-1"]
[ECO "D02"]
[WhiteElo "2353"]
[BlackElo "2623"]
[Annotator "TA"]
[PlyCount "102"]
[EventDate "2024.03.12"]
[EventCountry "ISL"]
[SourceTitle "playchess.com"]
[Source "ChessBase"]
[SourceQuality "1"]
[TimeControl "40/5400+30:1800+30"]

{[%evp 9,102,-32,-29,-29,-26,-38,-43,-51,-50,-53,-56,-48,-52,-57,-58,-45,-31,-25,-23,-14,-5,-79,-76,-80,-72,-77,-43,-42,-41,-43,-41,-44,-57,-63,-66,-62,-64,-59,-35,-37,-33,-33,-33,-93,-71,-78,-75,-71,-76,-125,-84,-90,-83,-75,-37,-39,-41,-48,-64,-74,-87,-71,-50,-45,-40,-87,-85,-106,-130,-245,-245,-248,-186,-6412,-5599,-5212,-4305,-2591,-2294,-1375,-969,-29972,-29973,-29973,-29974,-29974,-29975,-29977,-29978,-29981,-29981,-29981,-29982,-29982,-29983]} 1. d4 {[%emt 0:10:28]} Nf6 {[%emt 0:00:19]} 2. Nf3 {[%emt 0:00:26]} d5 {[%emt 0:00:23]} 3. c3 {[%emt 0:00:35]} Bf5 {[%emt 0:00:33]} 4. h3 {[%emt 0:01:44]} e6 {[%emt 0:00:39]} 5. Nh4 {[%emt 0:01:05]} Be4 {[%emt 0:07:44]} 6. Nd2 {[%emt 0:00:36]} h6 {[%emt 0:00:07]} 7. Nxe4 {[%emt 0:00:51]} dxe4 {[%emt 0:00:06]} 8. g3 {[%emt 0:00:51] Schwarz steht etwas besser.} c5 {[%emt 0:00:25]} 9. Ng2 {[%emt 0:03:58]} cxd4 {[%emt 0:22:51]} 10. Qxd4 {[%emt 0:00:15]} Qxd4 {[%emt 0:00:06]} 11. cxd4 {[%emt 0:00:08]} Nc6 {[%emt 0:00:03]} 12. e3 {[%emt 0:00:27]} Rc8 {[%emt 0:01:07]} 13. Bd2 {[%emt 0:01:18]} a6 {[%emt 0:00:50]} 14. Rc1 {[%emt 0:00:23]} Bd6 {[%emt 0:00:24]} 15. b4 {[%emt 0:02:11]} Ke7 {[%emt 0:01:12]} (15... Bxb4 $2 16. Bxb4 Kd7 17. Bc5 $18) 16. Rb1 {[%emt 0:17:28]} b5 {[%emt 0:01:36]} 17. a4 {[%emt 0:00:17]} Rb8 {[%emt 0:00:30] Schwarz hat aktiveres Spiel. Die weißen Türme stehen passiv.} 18. axb5 {[%emt 0:00:04]} axb5 {[%emt 0:00:07]} 19. Nf4 {[%emt 0:00:39]} e5 {[%emt 0:13:27]} 20. Ne2 {[%emt 0:02:51]} exd4 {[%emt 0:00:13]} 21. Nxd4 {[%emt 0:02:01]} Nxd4 {[%emt 0:00:55]} 22. exd4 {[%emt 0:00:04]} Rhc8 {[%emt 0:00:56]} 23. Bg2 {[%emt 0:00:27]} Rc2 {[%emt 0:02:18]} 24. Ke2 $1 {[%emt 0:01:14]} Rbc8 {[%emt 0:03:13] Droht ...Nd5 und aus.} 25. Rhc1 {[%emt 0:02:04]} Rxc1 {[%emt 0:03:06]} 26. Bxc1 {[%emt 0:03:10]} ({Vorzuziehen ist} 26. Rxc1 $15 Rxc1 27. Bxc1) 26... Rc4 {[%emt 0:07:08][%cal Of6d5]} 27. Bd2 {[%emt 0:00:17]} Rxd4 {[%emt 0:00:18]} 28. Bc3 {[%emt 0:19:46]} Rc4 {[%emt 0:00:08]} 29. Bxf6+ {[%emt 0:00:15]} (29. Ba1 $142) 29... gxf6 $17 {[%emt 0:01:38][%mdl 4096] Endspiel. KRB-KRB} 30. Ke3 {[%emt 0:02:49]} f5 {[%emt 0:00:13][%cal Oe7e6]} (30... Rxb4 31. Rxb4 Bxb4 32. Bxe4 $11) 31. Bf1 {[%emt 0:00:24]} Rc2 {[%emt 0:02:24] ...Bc7 ist eine echte Drohung.} (31... Rxb4 32. Rxb4 Bxb4 33. Bxb5 $11) 32. g4 $1 {[%emt 0:01:25]} Kf6 {[%emt 0:07:57] Zielt auf ...Bc7 ab.} 33. Bxb5 {[%emt 0:07:01]} Rc3+ {[%emt 0:00:21]} 34. Kd2 {[%emt 0:06:11]} Rxh3 {[%emt 0:00:09]} 35. gxf5 {[%emt 0:00:32]} Bf4+ {[%emt 0:03:57]} 36. Ke2 {[%emt 0:00:49]} Rc3 {[%emt 0:00:07][%cal Oh6h5] Lässt Bc6 nicht zu} (36... Kxf5 $2 37. Bd7+ Ke5 38. Bxh3 $18) 37. Ba4 {[%emt 0:00:07]} (37. Be8 $15 {sieht stärker aus.}) 37... Bc7 {[%emt 0:00:23]} ({Ein No Go ist} 37... Kxf5 38. b5 $11) 38. Rb2 {[%emt 0:00:33]} Kxf5 {[%emt 0:00:16]} 39. Rc2 {[%emt 0:00:58]} (39. Rb3 $17 Rc2+ 40. Ke1) 39... Rxc2+ $19 {[%emt 0:00:14]} 40. Bxc2 {[%emt 0:00:05] KB-KB} Kf4 {[%emt 0:00:05]} 41. Bd1 $2 {[%emt 0:30:33]} (41. Ba4) 41... h5 {[%emt 0:30:49]} 42. Kf1 {[%emt 0:12:34]} h4 {[%emt 0:00:07]} 43. Kg2 {[%emt 0:00:30]} Bb6 $1 {[%emt 0:00:05] Weiss muss nun ...f5 beachten.} 44. f3 {[%emt 0:00:34]} e3 {[%emt 0:00:01] ( -> ...Ke5)} 45. Kh3 {[%emt 0:00:00]} Bd8 $1 {[%emt 0:00:13] Schwarz setzt Matt.} 46. b5 {[%emt 0:00:00] [#]} Ke5 $1 {[%emt 0:00:22]} 47. f4+ {[%emt 0:00:00] [#]} Kd4 $1 {[%emt 0:01:26]} ({Schlechter ist} 47... Kxf4 48. b6 $11) 48. f5 {[%emt 0:00:00]} Kd3 {[%emt 0:00:04]} 49. f6 {[%emt 0:00:00]} e2 {[%emt 0:00:15]} 50. Bxe2+ {[%emt 0:00:00]} Kxe2 {[%emt 0:00:05]} 51. Kxh4 {[%emt 0:00:00]} Kf3 {[%emt 0:00:04] Gewichteter Fehlerwert: Weiß=0.41/Schwarz=0.05 (makellos) .  Fehler:       	Weiß=6     	---        Ungenau:       	---       	Schwarz=3     OK:         	Weiß=13    	Schwarz=18    Bester:       	Weiß=3     	Schwarz=2     Stark:        	Weiß=2     	---} ({Minderwertig wäre} 51... Bxf6+ 52. Kg4 $11) 0-1

[Event "Reykjavik Open 2024"]
[Site "Reykjavik"]
[Date "2024.03.18"]
[Round "5.10"]
[White "Lu, Maximillian"]
[Black "Deac, Bogdan-Daniel"]
[Result "0-1"]
[ECO "D00"]
[WhiteElo "2375"]
[BlackElo "2690"]
[Annotator "TA"]
[PlyCount "120"]
[EventDate "2024.03.12"]
[EventCountry "ISL"]
[SourceTitle "playchess.com"]
[Source "ChessBase"]
[SourceQuality "1"]
[TimeControl "40/5400+30:1800+30"]

{[%evp 9,120,-1,0,-15,0,-9,-13,-16,0,0,5,13,20,0,41,34,37,0,0,-8,0,-33,0,-15,15,-223,-220,-208,-185,-184,-192,-312,-145,-149,-111,-268,-264,-449,-461,-458,-451,-441,-478,-480,-474,-587,-257,-843,-318,-304,-322,-316,-331,-318,-305,-312,-283,-268,-300,-313,-293,-271,-265,-277,-282,-343,-349,-336,-345,-352,-352,-427,-427,-508,-508,-508,-508,-675,-633,-626,-499,-499,-499,-29954,-29955,-29958,-29961,-29962,-29963,-29959,-29946,-29965,-29966,-29968,-29970,-29968,-29971,-29971,-29972,-29973,-29973,-29974,-29975,-29973,-29974,-29973,-29963,-29960,-12849,-10050,-5716,-29975,-29976]} 1. d4 {[%emt 0:06:41]} Nf6 {[%emt 0:02:58]} 2. Bf4 {[%emt 0:00:02]} d5 {[%emt 0:00:33]} 3. e3 {[%emt 0:00:04]} c5 {[%emt 0:00:06]} 4. c3 {[%emt 0:00:06]} Nc6 {[%emt 0:00:55]} 5. Nd2 {[%emt 0:00:03]} Bf5 {[%emt 0:01:01]} 6. a4 {[%emt 0:00:02]} a6 {[%emt 0:03:20]} 7. Ngf3 {[%emt 0:00:11]} e6 {[%emt 0:00:20]} 8. Be2 {[%emt 0:03:51] Die Stellung ist ausgeglichen.} Rc8 {[%emt 0:13:22]} 9. O-O {[%emt 0:08:58]} cxd4 {[%emt 0:09:27]} 10. exd4 {[%emt 0:04:38]} Nd7 {[%emt 0:00:04]} 11. b4 {[%emt 0:07:52]} Ne7 {[%emt 0:12:49][%cal Oe7g6]} 12. Qb3 {[%emt 0:11:24]} Ng6 {[%emt 0:03:23]} 13. Be3 {[%emt 0:08:25]} Be7 {[%emt 0:05:10]} 14. h3 {[%emt 0:03:52]} O-O {[%emt 0:02:22]} 15. Rac1 {[%emt 0:05:19]} Nf6 {[%emt 0:04:20]} 16. Ne5 {[%emt 0:06:34]} h5 {[%emt 0:01:56]} 17. g4 $2 {[%emt 0:04:10]} (17. Qb2 $11 {und Weiss steht sicher.}) 17... hxg4 $19 {[%emt 0:00:12]} 18. hxg4 {[%emt 0:00:01]} Nxe5 {[%emt 0:00:08]} 19. gxf5 {[%emt 0:00:19]} Neg4 {[%emt 0:00:48] Hervorragende Reitkunst.} 20. Bf4 {[%emt 0:10:24]} (20. Qc2 $142) 20... Bd6 {[%emt 0:01:06]} (20... exf5 21. Qc2 $19) (20... Nh5 $19 21. Be5 Bg5 (21... exf5 $2 22. Bxg4 fxg4 23. Rfe1 $19)) 21. Bg5 $17 {[%emt 0:00:15] [#] Und jetzt Bxg4 wäre schön.} exf5 {[%emt 0:00:41] Zielt auf ...Bb8 ab.} 22. Qb1 $2 {[%emt 0:08:08]} (22. Bxg4 $17 {war nötig.} fxg4 23. Kg2) 22... Qd7 $19 {[%emt 0:10:03]} 23. f3 $2 {[%emt 0:01:15]} (23. Qd3 {ist eine bessere Verteidigung.}) 23... Nh7 {[%emt 0:09:53]} 24. fxg4 {[%emt 0:00:01]} Nxg5 {[%emt 0:00:06]} 25. Qxf5 {[%emt 0:00:06]} Qe7 {[%emt 0:00:39]} (25... Qxa4 $2 26. Qxg5 Qd7 27. Bf3 $18 (27. Qxd5 $2 Bh2+ 28. Kxh2 Qxd5 $19)) 26. Qd3 {[%emt 0:02:00] Lässt Nh3+ nicht zu} Rfe8 {[%emt 0:00:26][%cal Bf8e8,Be8e3,Be3d3][%mdl 32]} 27. Rfe1 {[%emt 0:04:47]} Qe3+ {[%emt 0:01:46]} (27... Bf4 $142 28. Bf1 Qf6 (28... Qxe1 $2 29. Rxe1 Rxe1 30. Nf3 $19)) 28. Kg2 $2 {[%emt 0:02:18]} (28. Qxe3 Rxe3 29. Nf1 Rexc3 30. Rxc3 Rxc3 31. b5) 28... Nh3 $2 {[%emt 0:10:02]} (28... Qf4 {( -> ...Qh2+)} 29. Nf1 g6) 29. Qxe3 {[%emt 0:00:01]} Rxe3 {[%emt 0:00:02]} 30. Bf3 {[%emt 0:03:04]} Nf4+ {[%emt 0:00:14]} ({Jedoch nicht} 30... Rexc3 31. Rxc3 Nf4+ 32. Kf2 Rxc3 33. Re8+ Kh7 34. Bd1) 31. Kf1 {[%emt 0:00:00]} Rd3 {[%emt 0:01:43]} ({Finger weg von} 31... Rexc3 32. Rxc3 Rxc3 33. Re8+ Kh7 34. Be2 $19) 32. Red1 {[%emt 0:00:57]} Rcxc3 {[%emt 0:00:30]} 33. Rxc3 {[%emt 0:00:03]} Rxc3 {[%emt 0:00:07]} 34. b5 {[%emt 0:00:25]} Rd3 {[%emt 0:05:18]} 35. bxa6 {[%emt 0:00:02]} bxa6 {[%emt 0:00:05][%cal Od6b4]} 36. Kf2 {[%emt 0:01:39]} Rxd4 {[%emt 0:00:21]} 37. Nf1 {[%emt 0:00:24]} Rxa4 {[%emt 0:01:29]} 38. Bxd5 {[%emt 0:00:02]} Nxd5 {[%emt 0:00:20]} 39. Rxd5 {[%emt 0:00:01][%mdl 4096] Endspiel. KRB-KRN} Bf4 {[%emt 0:00:26]} 40. Kf3 {[%emt 0:00:18]} f6 {[%emt 0:01:16]} 41. Nd2 {[%emt 0:31:26]} Bxd2 {[%emt 0:30:26]} 42. Rxd2 {[%emt 0:00:01] KR-KR} Kf7 {[%emt 0:00:42] Droht stark ...Kg6.} 43. Rd7+ {[%emt 0:00:05]} Kg6 {[%emt 0:00:00]} 44. Rb7 {[%emt 0:00:14]} a5 {[%emt 0:00:03]} 45. Ra7 {[%emt 0:00:03]} Ra1 {[%emt 0:00:06]} 46. Kg3 {[%emt 0:00:53] [#]} (46. g5 $19 fxg5 (46... Kxg5 $2 47. Rxg7+ Kh6 48. Rg8 $19) 47. Ra8) 46... a4 {[%emt 0:00:06]} 47. Kg2 {[%emt 0:00:08]} a3 {[%emt 0:00:06]} 48. Ra5 {[%emt 0:00:06]} a2 {[%emt 0:00:30]} 49. Kh2 {[%emt 0:00:04]} Kh7 {[%emt 0:00:59]} 50. Ra7 {[%emt 0:00:23]} Kg8 {[%emt 0:02:02]} 51. Kg2 {[%emt 0:00:07]} g6 {[%emt 0:00:12]} 52. Ra8+ {[%emt 0:01:25]} Kf7 {[%emt 0:00:07]} 53. Ra7+ {[%emt 0:00:08]} Ke6 {[%emt 0:00:33]} 54. Ra5 {[%emt 0:00:15]} Kd6 {[%emt 0:00:19]} 55. Kh2 {[%emt 0:00:20]} Kc6 {[%emt 0:00:15]} 56. Ra6+ {[%emt 0:00:07]} Kb5 {[%emt 0:00:35]} 57. Ra8 {[%emt 0:00:03]} Kc4 {[%emt 0:01:07]} 58. Kg2 {[%emt 0:01:55]} Kb3 {[%emt 0:00:41]} (58... f5 $142 59. Rc8+ Kd4 60. Rd8+ Ke5 61. Ra8 f4 (61... fxg4 $2 62. Ra5+ Kf4 63. Kh2 $19) 62. Re8+ Kf6 63. Ra8 f3+ 64. Kxf3 Rf1+ 65. Kg2 a1=Q (65... a1=R 66. Rf8+ Kg5 67. Rh8 $19) 66. Rf8+ Kg5 67. Rxf1 Qxf1+ 68. Kxf1 Kxg4 69. Kg2 g5 70. Kh2 Kf3 71. Kh3 g4+ 72. Kh2 Kf2 73. Kh1 Kg3 74. Kg1 Kh3 75. Kf2 g3+ 76. Kf1 Kh2 77. Ke2 g2 78. Kd3 g1=Q (78... g1=B 79. Ke4 $11) 79. Kc4 Kg3 80. Kd5 Kf4 81. Kd6 Qd4+ 82. Kc7 Qc5+ 83. Kb8 Ke5 84. Kb7 Kd6 85. Ka6 Qb4 86. Ka7 Kc7 87. Ka8 Qb8#) 59. Rb8+ {[%emt 0:00:03]} Kc3 {[%emt 0:00:07]} 60. Ra8 {[%emt 0:00:05]} Rd1 {[%emt 0:00:00] Gewichteter Fehlerwert: Weiß=0.64/Schwarz=0.42.  Verlustzug:     	Weiß=1     	---        Gewinn verpasst:   	---       	Schwarz=1     Fehler:       	Weiß=5     	Schwarz=2     Ungenau:       	Weiß=3     	Schwarz=2     OK:         	Weiß=13    	Schwarz=18    Bester:       	Weiß=2     	Schwarz=4} 0-1